fUST/lending_fUST_20241228
["ID","MTS","AMOUNT","RATE_DAILY","PERIOD"]
[346889774,1735343406237,409.7419301,0.00010004,2]
[346889775,1735343410504,502.72421608,9.729e-05,2]
[346889776,1735343413793,500.0,9.73e-05,2]
[346889777,1735343414042,500.0,0.00010004,2]
[346889778,1735343414315,500.0,0.00010278,2]
[346889779,1735343417183,500.0,9.729e-05,2]
[346889780,1735343417446,500.0,0.00010003,2]
[346889781,1735343417819,500.0,0.00010277,2]
[346889782,1735343418781,500.0,9.729e-05,2]
[346889783,1735343419684,500.0,9.729e-05,2]
[346889784,1735343419944,500.0,0.00010003,2]
[346889785,1735343420214,500.0,0.00010277,2]
[346889787,1735343423292,500.0,9.729e-05,2]
[346889788,1735343424283,500.0,0.00010003,2]
[346889789,1735343425244,500.0,0.00010277,2]
[346889790,1735343428233,500.0,9.902e-05,2]
[346889791,1735343428721,500.0,0.00010176,2]
[346889805,1735343431938,-500.0,0.0001045,2]
[346889806,1735343431949,-500.0,0.00010551,2]
[346889807,1735343431959,-500.0,0.00010552,2]
[346889808,1735343431969,-500.0,0.00010724,2]
[346889809,1735343431979,-500.0,0.00010826,2]
[346889810,1735343431989,-500.0,0.000111,2]
[346889811,1735343431999,-500.0,0.000111,2]
[346889812,1735343432009,-500.0,0.00011373,2]
[346889813,1735343432019,-500.0,0.00011373,2]
[346889814,1735343432029,-453.46679909,0.00011647,2]
[346889815,1735343432040,-500.0,0.00011647,2]
[346889816,1735343432050,-500.0,0.00011647,2]
[346889817,1735343432060,-300.0,0.00011822,2]
[346889818,1735343432069,-1804.46,0.00011823,2]
[346889819,1735343432079,-522.87,0.00011823,2]
[346889820,1735343432088,-706.41,0.00011823,2]
[346889822,1735343432098,-547.49,0.00011921,2]
[346889824,1735343432108,-500.0,0.00011921,2]
[346889825,1735343432117,-569.01,0.00011921,2]
[346889828,1735343432127,-500.0,0.00011921,2]
[346889830,1735343432138,-500.0,0.00011921,2]
[346889831,1735343432148,-513.26550794,0.00011971,2]
[346889834,1735343432158,-500.0,0.00012056,2]
[346889836,1735343432168,-1804.46,0.00012097,2]
[346889838,1735343432178,-522.87,0.00012097,2]
[346889839,1735343432187,-706.41,0.00012097,2]
[346889841,1735343432200,-547.49,0.00012195,2]
[346889843,1735343432210,-500.0,0.00012195,2]
[346889845,1735343432220,-305.34937568,0.00012195,2]
[346889847,1735343432229,-500.0,0.00012195,2]
[346889849,1735343432239,-3278.97247657,0.00012271,2]
[346889865,1735343432374,-784.83168271,0.00012271,2]
[346889867,1735343432384,-316.05983245,0.00012371,2]
[346889869,1735343432396,-1488.40016755,0.00012371,2]
[346889871,1735343432406,-522.87,0.00012371,2]
[346889873,1735343432415,-297.26763958,0.00012371,2]
[346889875,1735343432427,-409.14236042,0.00012371,2]
[346889877,1735343432437,-547.49,0.00012469,2]
[346889879,1735343432447,-500.0,0.00012469,2]
[346889881,1735343432456,-409.86763958,0.00012618,2]
[346889892,1735343432549,500.0,9.729e-05,2]
[346889905,1735343432668,504.71752733,0.00010003,2]
[346889920,1735343432804,500.0,9.73e-05,2]
[346889948,1735343433058,500.0,0.00010004,2]
[346889985,1735343433397,500.0,0.00010278,2]
[346890378,1735343437448,500.0,9.73e-05,2]
[346890379,1735343437731,508.36385705,9.729e-05,2]
[346890380,1735343437776,-329.84879696,0.00010552,2]
[346890588,1735343440084,-170.15120304,0.00010552,2]
[346890589,1735343440094,-340.98857159,0.00012618,2]
[346890590,1735343440103,-1204.71007943,0.00012645,2]
[346890591,1735343440115,-420.77688069,0.00012645,2]
[346890621,1735343440671,-178.97303988,0.00012645,2]
[346890623,1735343440681,-522.87,0.00012645,2]
[346890625,1735343440691,-706.41,0.00012645,2]
[346890627,1735343440701,-547.49,0.00012743,2]
[346890629,1735343440711,-190.49256929,0.00012743,2]
[346890631,1735343440720,-378.28898412,0.000129,2]
[346890633,1735343440729,-378.28898408,0.000129,2]
[346890635,1735343440738,-378.28898408,0.000129,2]
[346890636,1735343440748,-1804.46,0.00012919,2]
[346890638,1735343440758,-522.87,0.00012919,2]
[346890640,1735343440767,-706.41,0.00012919,2]
[346890642,1735343440776,-164.66444779,0.00013,2]
[346890644,1735343440786,-547.49,0.00013017,2]
[346890646,1735343440795,-1804.46,0.00013193,2]
[346890648,1735343440804,-522.87,0.00013193,2]
[346890650,1735343440814,-706.41,0.00013193,2]
[346890652,1735343440823,-547.49,0.00013291,2]
[346890654,1735343440833,-208.02590546,0.00013466,2]
[346890656,1735343440842,-500.0,0.00013466,2]
[346890658,1735343440852,-343.05738284,0.00013466,2]
[346890660,1735343440862,-1804.46,0.00013467,2]
[346890662,1735343440871,-522.87,0.00013467,2]
[346890664,1735343440881,-706.41,0.00013467,2]
[346890666,1735343440891,-547.49,0.00013565,2]
[346890667,1735343440900,-282.704027,0.00013699,2]
[346890669,1735343440910,-1804.46,0.00013741,2]
[346890672,1735343440920,-522.87,0.00013741,2]
[346890674,1735343440930,-706.41,0.00013741,2]
[346890676,1735343440940,-547.49,0.00013839,2]
[346890678,1735343440949,-400.0,0.00013973,2]
[346890680,1735343440959,-1804.46,0.00014015,2]
[346890682,1735343440968,-522.87,0.00014015,2]
[346890684,1735343440978,-706.41,0.00014015,2]
[346890686,1735343440990,-547.49,0.00014113,2]
[346890688,1735343441001,-378.28898408,0.00014175,2]
[346890690,1735343441011,-1804.46,0.00014289,2]
[346890692,1735343441021,-522.87,0.00014289,2]
[346890694,1735343441031,-706.41,0.00014289,2]
[346890696,1735343441041,-547.49,0.00014387,2]
[346890698,1735343441051,-1804.46,0.00014563,2]
[346890700,1735343441060,-522.87,0.00014563,2]
[346890702,1735343441070,-706.41,0.00014563,2]
[346890704,1735343441079,-547.49,0.00014661,2]
[346890706,1735343441089,-1804.46,0.00014837,2]
[346890708,1735343441099,-522.87,0.00014837,2]
[346890710,1735343441108,-706.41,0.00014837,2]
[346890712,1735343441118,-547.49,0.00014935,2]
[346890714,1735343441127,-1804.46,0.00015111,2]
[346890716,1735343441137,-522.87,0.00015111,2]
[346890718,1735343441147,-706.41,0.00015111,2]
[346890720,1735343441157,-750.85621117,0.00015157,2]
[346890722,1735343441166,-547.49,0.00015209,2]
[346890724,1735343441175,-500.0,0.00015271,2]
[346890726,1735343441184,-503.17694451,0.00015271,2]
[346890728,1735343441195,-500.0,0.00015271,2]
[346890730,1735343441204,-504.23628704,0.00015271,2]
[346890732,1735343441213,-500.0,0.00015271,2]
[346890734,1735343441221,-500.0,0.00015271,2]
[346890736,1735343441231,-500.0,0.00015271,2]
[346890738,1735343441239,-506.51167817,0.00015271,2]
[346890741,1735343441248,-500.0,0.00015271,2]
[346890743,1735343441257,-500.0,0.00015271,2]
[346890745,1735343441266,-502.96728963,0.00015271,2]
[346890747,1735343441274,-500.0,0.00015271,2]
[346890749,1735343441284,-500.0,0.00015271,2]
[346890751,1735343441293,-506.40283484,0.00015271,2]
[346890753,1735343441303,-500.0,0.00015271,2]
[346890755,1735343441311,-500.0,0.00015271,2]
[346890757,1735343441319,-500.0,0.00015271,2]
[346890758,1735343441328,-501.37689288,0.00015271,2]
[346890760,1735343441336,-500.0,0.00015271,2]
[346890763,1735343441345,-500.0,0.00015271,2]
[346890765,1735343441352,-500.0,0.00015271,2]
[346890767,1735343441361,-500.0,0.00015271,2]
[346890769,1735343441371,-500.0,0.00015271,2]
[346890771,1735343441382,-500.0,0.00015271,2]
[346890773,1735343441392,-526.85867809,0.00015271,2]
[346890775,1735343441402,-500.0,0.00015271,2]
[346890777,1735343441412,-503.47595851,0.00015271,2]
[346890779,1735343441422,-500.0,0.00015271,2]
[346890781,1735343441431,-500.0,0.00015271,2]
[346890783,1735343441441,-500.0,0.00015271,2]
[346890785,1735343441450,-500.0,0.00015271,2]
[346890787,1735343441460,-500.0,0.00015271,2]
[346890799,1735343441554,-153.35675439,0.00015271,2]
[346890801,1735343441565,-500.0,0.00015271,2]
[346890803,1735343441575,-500.0,0.00015271,2]
[346890805,1735343441585,-500.0,0.00015271,2]
[346890807,1735343441595,-500.0,0.00015271,2]
[346890809,1735343441605,-500.0,0.00015271,2]
[346890811,1735343441614,-500.0,0.00015271,2]
[346890813,1735343441624,-500.0,0.00015271,2]
[346890815,1735343441633,-591.04366995,0.00015271,2]
[346890817,1735343441643,-503.70124032,0.00015271,2]
[346890819,1735343441652,-500.0,0.00015271,2]
[346890821,1735343441661,-500.0,0.00015271,2]
[346890823,1735343441671,-500.0,0.00015271,2]
[346890825,1735343441680,-500.0,0.00015271,2]
[346890827,1735343441690,-500.0,0.00015271,2]
[346890829,1735343441699,-500.0,0.00015271,2]
[346890831,1735343441709,-500.0,0.00015271,2]
[346890833,1735343441720,-500.0,0.00015271,2]
[346890835,1735343441729,-500.0,0.00015271,2]
[346890837,1735343441738,-500.0,0.00015271,2]
[346890839,1735343441747,-500.0,0.00015271,2]
[346890841,1735343441757,-500.0,0.00015271,2]
[346890843,1735343441766,-500.0,0.00015271,2]
[346890845,1735343441777,-500.0,0.00015271,2]
[346890847,1735343441789,-500.0,0.00015271,2]
[346890849,1735343441799,-500.0,0.00015271,2]
[346890851,1735343441808,-500.0,0.00015271,2]
[346890853,1735343441818,-500.0,0.00015271,2]
[346890855,1735343441827,-1804.46,0.00015385,2]
[346890857,1735343441837,-522.87,0.00015385,2]
[346890859,1735343441847,-706.41,0.00015385,2]
[346890861,1735343441857,-547.49,0.00015483,2]
[346890863,1735343441867,-500.0,0.00015545,2]
[346890865,1735343441877,-260.47934994,0.00015545,2]
[346890867,1735343441886,-520.21562192,0.00015545,2]
[346890869,1735343441899,-500.0,0.00015545,2]
[346890871,1735343441909,-500.0,0.00015545,2]
[346890873,1735343441923,-500.0,0.00015545,2]
[346890875,1735343441935,-500.0,0.00015545,2]
[346890877,1735343441944,-500.0,0.00015545,2]
[346890879,1735343441954,-500.0,0.00015545,2]
[346890881,1735343441964,-500.0,0.00015545,2]
[346890883,1735343441973,-500.0,0.00015545,2]
[346890885,1735343441983,-500.0,0.00015545,2]
[346890887,1735343441993,-500.0,0.00015545,2]
[346890889,1735343442002,-500.0,0.00015545,2]
[346890891,1735343442012,-500.0,0.00015545,2]
[346890893,1735343442022,-595.58,0.00015545,2]
[346890895,1735343442032,-500.0,0.00015545,2]
[346890897,1735343442041,-500.0,0.00015545,2]
[346890899,1735343442051,-500.0,0.00015545,2]
[346890901,1735343442060,-500.0,0.00015545,2]
[346890903,1735343442070,-1804.46,0.00015659,2]
[346890905,1735343442080,-522.87,0.00015659,2]
[346890907,1735343442089,-706.41,0.00015659,2]
[346890909,1735343442099,-378.28898408,0.0001569,2]
[346890911,1735343442109,-547.49,0.00015757,2]
[346890913,1735343442119,-500.0,0.00015819,2]
[346890915,1735343442129,-598.79023601,0.00015819,2]
[346890917,1735343442139,-376.59064294,0.00015819,2]
[346890919,1735343442153,-500.0,0.00015819,2]
[346890921,1735343442164,-443.25,0.00015819,2]
[346890923,1735343442174,-500.0,0.00015819,2]
[346890925,1735343442183,-500.0,0.00015819,2]
[346890927,1735343442195,-500.0,0.00015819,2]
[346890929,1735343442206,-500.0,0.00015819,2]
[346890930,1735343442216,-500.0,0.00015819,2]
[346890931,1735343442225,-1804.46,0.00015933,2]
[346890932,1735343442235,-522.87,0.00015933,2]
[346890933,1735343442244,-706.41,0.00015933,2]
[346890934,1735343442253,-547.59916307,0.00016031,2]
[346890935,1735343442263,-633.80983261,0.00016093,2]
[346890936,1735343442272,-500.0,0.00016093,2]
[346890937,1735343442281,-500.0,0.00016093,2]
[346890938,1735343442291,-151.0,0.000161,2]
[346890939,1735343442301,-1804.6056248,0.00016207,2]
[346890940,1735343442310,-523.01,0.00016207,2]
[346890941,1735343442319,-706.45459231,0.00016207,2]
[346890942,1735343442328,-500.0,0.00016367,2]
[346890943,1735343442338,-500.0,0.00016367,2]
[346890944,1735343442347,-500.0,0.00016438,2]
[346890946,1735343442357,-500.0,0.00016438,2]
[346890947,1735343442366,-165.57715325,0.00016438,2]
[346890948,1735343442375,-510.49079653,0.00016641,2]
[346890950,1735343442385,-331.747,0.00016653,2]
[346890952,1735343442394,-187.27555935,0.00016653,2]
[346890953,1735343442403,-151.0,0.000169,2]
[346890954,1735343442412,-378.28898408,0.00017205,2]
[346890955,1735343442421,-750.85621117,0.00017696,2]
[346890956,1735343442431,-151.0,0.000178,2]
[346890958,1735343442440,-500.0,0.00017808,4]
[346890960,1735343442450,-151.0,0.000186,2]
[346890962,1735343442460,-378.28898408,0.0001872,2]
[346890963,1735343442470,-1675.9307956,0.000189,2]
[346890964,1735343442479,-302.63687509,0.00019,2]
[346890965,1735343442489,-302.63687509,0.00019,2]
[346890966,1735343442499,-500.0,0.00019178,6]
[346890967,1735343442509,-500.0,0.00019178,2]
[346890968,1735343442519,-500.0,0.00019178,2]
[346890969,1735343442529,-500.0,0.00019178,2]
[346890970,1735343442539,-500.0,0.00019178,2]
[346890971,1735343442548,-500.0,0.00019178,2]
[346890972,1735343442558,-500.0,0.00019178,2]
[346890973,1735343442567,-500.0,0.00019178,2]
[346890974,1735343442577,-500.0,0.00019178,2]
[346890975,1735343442586,-500.0,0.00019178,2]
[346890976,1735343442596,-500.0,0.00019178,2]
[346890977,1735343442605,-500.0,0.00019178,2]
[346890978,1735343442614,-414.71260519,0.00019178,2]
[346890979,1735343442624,-14247.5620923,0.00019178,11]
[346890980,1735343442634,-302.63687509,0.0001919,2]
[346890981,1735343442645,-302.63687509,0.0001919,2]
[346890982,1735343442655,-5000.0,0.00019209,7]
[346890983,1735343442664,-151.0,0.00019268,6]
[346890984,1735343442674,-766.742,0.0001931,2]
[346890985,1735343442683,-450.8587857,0.00019342,2]
[346890986,1735343442693,-302.63687509,0.0001938,2]
[346890987,1735343442703,-152.30064742,0.0001938,2]
[346890988,1735343442713,-4679.05894108,0.00019472,2]
[346890989,1735343442722,-216.8153346,0.00019479,2]
[346890990,1735343442732,-151.0,0.000195,2]
[346890991,1735343442741,-273.4642427,0.00019507,2]
[346890992,1735343442751,-153.0000001,0.00019507,2]
[346890993,1735343442761,-384.059488,0.00019507,2]
[346890994,1735343442771,-302.63687509,0.0001957,2]
[346890995,1735343442782,-151.0,0.00019622,7]
[346890996,1735343442792,-16947.330209,0.00019721,2]
[346890997,1735343442802,-302.63687509,0.0001976,2]
[346890998,1735343442812,-153.4903954,0.00019781,2]
[346890999,1735343442821,-5000.0,0.00019798,7]
[346891000,1735343442831,-483.53759214,0.0001995,4]
[346891001,1735343442841,-151.0,0.00019975,7]
[346891002,1735343442851,-421.78359838,0.0002,6]
[346891003,1735343442860,-11780.0,0.0002,2]
[346891004,1735343442870,-2130.13333964,0.00020074,2]
[346891006,1735343442879,-2500.0,0.00020074,2]
[346891007,1735343442889,-564.24,0.000201,2]
[346891008,1735343442901,-10310.54764679,0.00020115,2]
[346891009,1735343442910,-461.907154,0.00020125,2]
[346891010,1735343442921,-2007.17709976,0.000202,10]
[346891011,1735343442931,-1943.62496146,0.00020229,2]
[346891012,1735343442940,-1332.0,0.00020229,2]
[346891013,1735343442950,-750.85621117,0.00020235,2]
[346891014,1735343442959,-378.28898408,0.00020235,2]
[346891015,1735343442969,-206.99,0.00020261,2]
[346891016,1735343442979,-1200.0,0.00020267,2]
[346891017,1735343442989,-499.0,0.00020273,2]
[346891018,1735343442999,-150.333,0.00020274,2]
[346891019,1735343443009,-2168.0,0.00020274,2]
[346891020,1735343443018,-535.306,0.00020274,2]
[346891021,1735343443028,-2390.999,0.00020274,2]
[346891022,1735343443038,-394.0,0.00020274,2]
[346891023,1735343443048,-151.0,0.000203,3]
[346891024,1735343443059,-2000.0,0.000203,2]
[346891025,1735343443068,-151.0,0.00020309,2]
[346891026,1735343443078,-151.0,0.00020309,2]
[346891027,1735343443087,-151.0,0.00020309,2]
[346891028,1735343443097,-151.0,0.00020309,2]
[346891029,1735343443109,-151.0,0.00020309,2]
[346891030,1735343443118,-151.0,0.00020309,2]
[346891031,1735343443129,-151.0,0.00020309,2]
[346891032,1735343443138,-151.0,0.00020309,2]
[346891033,1735343443149,-151.0,0.00020309,2]
[346891034,1735343443159,-151.0,0.00020309,2]
[346891035,1735343443169,-151.0,0.00020309,2]
[346891036,1735343443179,-151.0,0.00020309,2]
[346891037,1735343443200,-151.0,0.00020309,2]
[346891038,1735343443211,-151.0,0.00020309,2]
[346891039,1735343443220,-151.0,0.00020309,2]
[346891041,1735343443230,-151.0,0.00020309,2]
[346891042,1735343443239,-151.0,0.00020309,2]
[346891043,1735343443249,-151.0,0.00020309,2]
[346891044,1735343443258,-151.0,0.00020309,2]
[346891045,1735343443267,-274.989392,0.00020309,2]
[346891046,1735343443277,-151.0,0.00020309,2]
[346891047,1735343443287,-151.0,0.00020309,2]
[346891048,1735343443296,-151.0,0.00020309,2]
[346891049,1735343443305,-151.0,0.00020309,2]
[346891050,1735343443315,-151.0,0.00020309,2]
[346891051,1735343443324,-152.006909,0.00020309,2]
[346891052,1735343443333,-151.0,0.00020309,2]
[346891053,1735343443342,-151.0,0.00020309,2]
[346891054,1735343443352,-151.0,0.00020309,2]
[346891055,1735343443361,-151.0,0.00020309,2]
[346891056,1735343443370,-151.0,0.00020309,2]
[346891057,1735343443379,-151.0,0.00020309,2]
[346891058,1735343443389,-151.0,0.00020309,2]
[346891059,1735343443400,-155.720697,0.00020309,2]
[346891060,1735343443409,-151.0,0.00020309,2]
[346891061,1735343443418,-151.0,0.00020309,2]
[346891062,1735343443428,-151.0,0.00020309,2]
[346891063,1735343443438,-151.0,0.00020309,2]
[346891064,1735343443447,-151.0,0.00020309,2]
[346891065,1735343443457,-151.0,0.00020309,2]
[346891066,1735343443467,-151.0,0.00020309,2]
[346891067,1735343443477,-151.0,0.00020309,2]
[346891068,1735343443486,-151.0,0.00020309,2]
[346891069,1735343443496,-151.0,0.00020309,2]
[346891070,1735343443505,-151.0,0.00020309,2]
[346891071,1735343443515,-151.0,0.00020309,2]
[346891072,1735343443524,-151.0,0.00020309,2]
[346891073,1735343443533,-151.0,0.00020309,2]
[346891074,1735343443544,-151.0,0.00020309,2]
[346891075,1735343443554,-241.92569,0.00020309,2]
[346891077,1735343443563,-151.0,0.00020309,2]
[346891079,1735343443572,-151.0,0.00020309,2]
[346891080,1735343443583,-151.136789,0.00020309,2]
[346891082,1735343443592,-151.0,0.00020309,2]
[346891084,1735343443601,-151.0,0.00020309,2]
[346891086,1735343443610,-187.593686,0.00020309,2]
[346891087,1735343443619,-187.593686,0.00020309,2]
[346891088,1735343443629,-151.0,0.00020309,2]
[346891089,1735343443638,-355.73180257,0.00020328,2]
[346891090,1735343443648,-151.0,0.00020329,2]
[346891091,1735343443657,-151.0,0.00020329,2]
[346891093,1735343443666,-279.138022,0.00020329,2]
[346891095,1735343443675,-151.0,0.00020329,7]
[346891097,1735343443684,-500.0,0.00020329,2]
[346891099,1735343443694,-150.23,0.00020329,2]
[346891101,1735343443703,-150.21,0.00020329,2]
[346891103,1735343443712,-214.7749613,0.00020329,2]
[346891105,1735343443721,-1058.94555981,0.0002033,2]
[346891107,1735343443731,-151.0,0.00020334,2]
[346891109,1735343443740,-151.0,0.00020334,2]
[346891111,1735343443749,-151.0,0.00020334,2]
[346891113,1735343443759,-151.0,0.00020334,2]
[346891115,1735343443768,-151.0,0.00020334,2]
[346891117,1735343443778,-151.0,0.00020334,2]
[346891119,1735343443787,-151.0,0.00020334,2]
[346891121,1735343443796,-151.0,0.00020334,2]
[346891123,1735343443805,-151.0,0.00020334,2]
[346891125,1735343443815,-151.0,0.00020334,2]
[346891127,1735343443824,-151.0,0.00020334,2]
[346891129,1735343443833,-239.48192,0.00020334,2]
[346891131,1735343443842,-220.531151,0.00020334,2]
[346891132,1735343443851,-220.531151,0.00020334,2]
[346891133,1735343443861,-220.531151,0.00020334,2]
[346891134,1735343443870,-220.531151,0.00020334,2]
[346891136,1735343443879,-220.531151,0.00020334,2]
[346891137,1735343443888,-220.531151,0.00020334,2]
[346891138,1735343443898,-220.531151,0.00020334,2]
[346891139,1735343443907,-220.531151,0.00020334,2]
[346891140,1735343443916,-220.531151,0.00020334,2]
[346891141,1735343443926,-220.531151,0.00020334,2]
[346891142,1735343443945,-220.531151,0.00020334,2]
[346891143,1735343443956,-220.531151,0.00020334,2]
[346891144,1735343443965,-220.531151,0.00020334,2]
[346891145,1735343443975,-220.531151,0.00020334,2]
[346891146,1735343443990,-220.531151,0.00020334,2]
[346891147,1735343443999,-220.531151,0.00020334,2]
[346891148,1735343444008,-220.531151,0.00020334,2]
[346891149,1735343444018,-220.531151,0.00020334,2]
[346891150,1735343444028,-220.531151,0.00020334,2]
[346891151,1735343444038,-220.531155,0.00020334,2]
[346891152,1735343444047,-151.0,0.00020334,2]
[346891153,1735343444056,-151.0,0.00020334,2]
[346891154,1735343444066,-151.0,0.00020334,2]
[346891155,1735343444075,-190.533356,0.00020334,2]
[346891156,1735343444085,-151.0,0.00020334,2]
[346891157,1735343444094,-151.0,0.00020334,2]
[346891158,1735343444103,-151.0,0.00020334,2]
[346891159,1735343444112,-151.0,0.00020334,2]
[346891160,1735343444123,-151.0,0.00020334,2]
[346891161,1735343444132,-151.0,0.00020334,2]
[346891162,1735343444142,-151.0,0.00020334,2]
[346891163,1735343444272,-151.0,0.00020334,2]
[346891164,1735343444283,-211.37502,0.00020334,2]
[346891165,1735343444294,-365.627469,0.00020334,2]
[346891166,1735343444304,-365.627469,0.00020334,2]
[346891167,1735343444315,-365.627469,0.00020334,2]
[346891168,1735343444325,-365.627469,0.00020334,2]
[346891169,1735343444334,-365.627469,0.00020334,2]
[346891170,1735343444344,-365.627469,0.00020334,2]
[346891171,1735343444354,-365.627469,0.00020334,2]
[346891172,1735343444364,-365.627469,0.00020334,2]
[346891173,1735343444375,-365.627469,0.00020334,2]
[346891174,1735343444385,-365.627469,0.00020334,2]
[346891175,1735343444395,-365.627469,0.00020334,2]
[346891176,1735343444404,-365.627469,0.00020334,2]
[346891177,1735343444414,-365.627469,0.00020334,2]
[346891178,1735343444424,-365.627469,0.00020334,2]
[346891179,1735343444435,-365.627469,0.00020334,2]
[346891180,1735343444446,-365.627469,0.00020334,2]
[346891181,1735343444456,-151.0,0.00020334,2]
[346891182,1735343444465,-365.627469,0.00020334,2]
[346891183,1735343444476,-365.627469,0.00020334,2]
[346891184,1735343444486,-151.0,0.00020334,2]
[346891185,1735343444495,-365.627469,0.00020334,2]
[346891186,1735343444504,-151.0,0.00020334,2]
[346891187,1735343444513,-365.627467,0.00020334,2]
[346891188,1735343444522,-151.0,0.00020334,2]
[346891189,1735343444531,-151.0,0.00020334,2]
[346891190,1735343444541,-187.593686,0.00020334,2]
[346891191,1735343444553,-187.593686,0.00020334,2]
[346891192,1735343444563,-187.593686,0.00020334,2]
[346891193,1735343444573,-187.593686,0.00020334,2]
[346891194,1735343444584,-187.593686,0.00020334,2]
[346891195,1735343444594,-187.593686,0.00020334,2]
[346891196,1735343444605,-187.593686,0.00020334,2]
[346891197,1735343444614,-187.593686,0.00020334,2]
[346891198,1735343444623,-187.593686,0.00020334,2]
[346891199,1735343444632,-187.593686,0.00020334,2]
[346891200,1735343444643,-187.593686,0.00020334,2]
[346891201,1735343444652,-187.593686,0.00020334,2]
[346891202,1735343444662,-187.593686,0.00020334,2]
[346891203,1735343444671,-187.593686,0.00020334,2]
[346891204,1735343444681,-187.593686,0.00020334,2]
[346891205,1735343444690,-187.593686,0.00020334,2]
[346891206,1735343444700,-187.593686,0.00020334,2]
[346891207,1735343444709,-187.593692,0.00020334,2]
[346891208,1735343444719,-151.0,0.00020334,2]
[346891209,1735343444729,-151.0,0.00020334,2]
[346891210,1735343444738,-151.0,0.00020334,2]
[346891211,1735343444748,-151.0,0.00020334,2]
[346891212,1735343444758,-151.0,0.00020334,2]
[346891213,1735343444769,-151.0,0.00020334,2]
[346891214,1735343444778,-151.0,0.00020334,2]
[346891215,1735343444788,-151.0,0.00020334,2]
[346891216,1735343444797,-151.0,0.00020334,2]
[346891217,1735343444807,-151.0,0.00020334,2]
[346891218,1735343444816,-151.0,0.00020334,2]
[346891219,1735343444825,-151.0,0.00020334,2]
[346891220,1735343444833,-151.0,0.00020334,2]
[346891221,1735343444843,-151.0,0.00020334,2]
[346891222,1735343444852,-151.0,0.00020334,2]
[346891223,1735343444862,-231.361111,0.00020334,2]
[346891224,1735343444871,-151.0,0.00020334,2]
[346891225,1735343444880,-151.651175,0.00020334,2]
[346891226,1735343444891,-151.0,0.00020334,2]
[346891227,1735343444901,-151.0,0.00020334,2]
[346891228,1735343444910,-151.0,0.00020334,2]
[346891229,1735343444920,-151.0,0.00020334,2]
[346891230,1735343444929,-151.0,0.00020334,2]
[346891231,1735343444939,-151.0,0.00020334,2]
[346891232,1735343444949,-151.0,0.00020334,2]
[346891233,1735343444959,-151.0,0.00020334,2]
[346891234,1735343444968,-151.0,0.00020334,2]
[346891235,1735343444978,-151.0,0.00020334,2]
[346891236,1735343444988,-151.0,0.00020334,2]
[346891237,1735343444998,-244.7444,0.00020334,2]
[346891238,1735343445008,-151.0,0.00020334,2]
[346891239,1735343445017,-151.0,0.00020334,2]
[346891240,1735343445027,-151.0,0.00020334,2]
[346891241,1735343445036,-151.0,0.00020334,2]
[346891242,1735343445046,-155.961751,0.00020334,2]
[346891243,1735343445056,-151.0,0.00020334,2]
[346891244,1735343445066,-151.0,0.00020334,2]